bitfinex/quotes_BTCUSD_20241002
["timestamp","ask_amount","ask_price","bid_price","bid_amount"]
[1727844944784,0.221839,61681.0,61680.0,0.024819]
[1727844945433,0.54619923,61681.0,61680.0,0.011819]
[1727844945694,0.37607034,61681.0,61680.0,0.008819]
[1727844945904,0.48642653,61681.0,61680.0,0.008819]
[1727844946108,0.48642653,61681.0,61680.0,0.012819]
[1727844946324,0.48642653,61681.0,61680.0,0.000819]
[1727844946325,0.58337305,61681.0,61680.0,0.000819]
[1727844946716,0.58437305,61681.0,61680.0,0.000819]
[1727844946926,0.58337305,61681.0,61680.0,0.000819]
[1727844947305,0.48742653,61681.0,61680.0,0.000819]
[1727844948110,0.60881211,61681.0,61680.0,0.001819]
[1727844948391,0.58432195,61681.0,61680.0,0.001819]
[1727844948580,0.48742653,61681.0,61680.0,0.001819]
[1727844949018,0.63620094,61681.0,61680.0,0.001819]
[1727844949173,0.63813939,61681.0,61680.0,0.001819]
[1727844949577,0.80283384,61681.0,61680.0,0.001819]
[1727844949784,0.129726,61668.0,61667.0,0.000819]
[1727844949988,0.40555655,61668.0,61667.0,0.000819]
[1727844950143,0.43097275,61668.0,61667.0,0.000819]
[1727844950963,0.43297275,61668.0,61667.0,0.000819]
[1727844951160,0.43097275,61668.0,61667.0,0.000819]
[1727844951359,0.43297275,61668.0,61667.0,0.000819]
[1727844952414,0.40755655,61668.0,61667.0,0.000819]
[1727844954341,0.52614451,61668.0,61667.0,0.000819]
[1727844954564,0.52808296,61668.0,61667.0,0.000819]
[1727844955301,0.71819946,61668.0,61667.0,0.000819]
[1727844955557,0.71819946,61668.0,61642.0,0.00511577]
[1727844955558,0.129766,61649.0,61642.0,0.00082]
[1727844955795,0.22860955,61643.0,61642.0,0.00082]
[1727844956042,0.31090955,61643.0,61642.0,0.00082]
[1727844956490,0.33633917,61643.0,61642.0,0.00082]
[1727844956958,0.31090955,61643.0,61642.0,0.00082]
[1727844957651,0.129798,61634.0,61629.0,0.000819]
[1727844958561,0.28058876,61630.0,61629.0,0.000819]
[1727844959929,0.37528876,61630.0,61629.0,0.000819]
[1727844960157,0.40072441,61630.0,61629.0,0.000819]
[1727844960600,0.40072441,61630.0,61629.0,0.004819]
[1727844960840,0.40172441,61630.0,61629.0,0.010819]
[1727844961087,0.40172441,61630.0,61629.0,0.006819]
[1727844961315,0.41472441,61630.0,61629.0,0.001819]
[1727844961521,0.41172441,61630.0,61629.0,0.001819]
[1727844961734,0.42874012,61630.0,61629.0,0.001819]
[1727844962178,0.43067857,61630.0,61629.0,0.001819]
[1727844962396,0.58437302,61630.0,61629.0,0.000819]
[1727844962611,0.68967302,61630.0,61629.0,0.000819]
[1727844962822,0.47150045,61630.0,61629.0,0.000819]
[1727844963069,0.62228321,61630.0,61629.0,0.000819]
[1727844963284,0.63628321,61630.0,61629.0,0.000819]
[1727844963498,0.62228321,61630.0,61629.0,0.000819]
[1727844963693,0.63628321,61630.0,61629.0,0.000819]
[1727844963965,0.64728321,61630.0,61629.0,0.001819]
[1727844964408,0.48258876,61630.0,61629.0,0.001819]
[1727844964635,0.331806,61630.0,61629.0,0.001819]
[1727844964852,0.48258876,61630.0,61629.0,0.001819]
[1727844965069,0.50802515,61630.0,61629.0,0.001819]
[1727844965512,0.35724239,61630.0,61629.0,0.001819]
[1727844966411,0.18024239,61630.0,61629.0,0.001819]
[1727844966853,0.16924239,61630.0,61629.0,0.000819]
[1727844967070,0.16624239,61630.0,61629.0,0.001819]
[1727844967584,0.04443639,61630.0,61629.0,0.131628]
[1727844967804,0.03343639,61630.0,61629.0,0.130628]
[1727844967990,0.03943639,61630.0,61629.0,0.131628]
[1727844968516,0.03943639,61630.0,61629.0,0.29632245]
[1727844968957,0.014,61630.0,61629.0,0.29632245]
[1727844969389,0.006,61630.0,61629.0,0.29632245]
[1727844969601,0.009,61630.0,61629.0,0.29632245]
[1727844969807,0.003,61630.0,61629.0,0.29532245]
[1727844970047,0.24296023,61637.0,61629.0,0.16551345]
[1727844970280,0.24296023,61637.0,61632.0,0.129802]
[1727844970495,0.37275323,61637.0,61633.0,0.1298]
[1727844970731,0.02543222,61639.0,61630.0,0.16469445]
[1727844970932,0.129794,61637.0,61633.0,0.1298]
[1727844971152,0.12979,61638.0,61634.0,0.129798]
[1727844971374,0.001,61637.0,61634.0,0.129798]
[1727844972479,0.00564,61637.0,61634.0,0.129798]
[1727844972714,0.00164,61637.0,61634.0,0.129798]
[1727844972939,0.50418423,61637.0,61630.0,0.129806]
[1727844973183,0.129801,61633.0,61629.0,0.000819]
[1727844973405,0.129801,61633.0,61629.0,0.29532145]
[1727844973629,0.129797,61635.0,61629.0,0.42512945]
[1727844973854,0.129797,61635.0,61631.0,0.129803]
[1727844974207,0.00264,61637.0,61629.0,0.42512945]
[1727844974426,0.129794,61636.0,61632.0,0.129801]
[1727844974903,0.15522584,61636.0,61632.0,0.129801]
[1727844975153,0.00464,61637.0,61635.0,0.24296023]
[1727844975400,0.00464,61637.0,61636.0,0.229794]
[1727844975644,0.00164,61637.0,61636.0,0.39448845]
[1727844976400,0.00264,61637.0,61636.0,0.39448845]
[1727844976852,0.00264,61637.0,61636.0,0.39748845]
[1727844977072,0.00364,61637.0,61636.0,0.41148845]
[1727844977303,0.00264,61637.0,61636.0,0.40848845]
[1727844977534,0.00264,61637.0,61636.0,0.39748845]
[1727844977966,0.00364,61637.0,61636.0,0.41148845]
[1727844978408,0.00364,61637.0,61636.0,0.017]
[1727844978856,0.00364,61637.0,61636.0,0.143794]
[1727844978857,0.00264,61637.0,61636.0,0.143794]
[1727844979110,0.00164,61637.0,61636.0,0.129794]
[1727844979336,0.00264,61637.0,61636.0,0.132794]
[1727844979562,0.00264,61637.0,61636.0,0.009]
[1727844979795,0.00364,61637.0,61636.0,0.012]
[1727844980014,0.132432,61637.0,61636.0,0.003]
[1727844980230,0.133432,61637.0,61636.0,0.009]
[1727844980436,0.21636967,61637.0,61636.0,0.009]
[1727844980694,0.29926967,61637.0,61636.0,0.009]
[1727844980915,0.30020812,61637.0,61636.0,0.003]
[1727844981838,0.46490257,61637.0,61636.0,0.003]
[1727844982069,0.129806,61630.0,61629.0,0.000819]
[1727844982310,0.28058876,61630.0,61629.0,0.000819]
[1727844982961,0.129806,61630.0,61629.0,0.000819]
[1727844983617,0.137806,61630.0,61629.0,0.000819]
[1727844984041,0.143806,61630.0,61629.0,0.001819]
[1727844985176,0.25130998,61630.0,61629.0,0.001819]
[1727844985624,0.16924125,61630.0,61629.0,0.001819]
[1727844985847,0.16124125,61630.0,61629.0,0.001819]
[1727844986071,0.32002401,61630.0,61629.0,0.001819]
[1727844986303,0.32002401,61630.0,61618.0,0.24377923]
[1727844986304,0.00093845,61627.0,61618.0,0.000819]
[1727844986521,0.28255121,61619.0,61618.0,0.000819]
[1727844986788,0.37935121,61619.0,61618.0,0.000819]
[1727844987032,0.46225121,61619.0,61618.0,0.000819]
[1727844987250,0.51069547,61619.0,61618.0,0.000819]
[1727844987473,0.38086547,61619.0,61611.0,0.24296023]
[1727844987718,0.13177245,61617.0,61611.0,0.24296023]
[1727844988399,0.129834,61617.0,61611.0,0.24296023]
[1727844988619,0.29452845,61617.0,61611.0,0.24296023]
[1727844989332,0.2964669,61617.0,61611.0,0.24296023]
[1727844989795,0.29452845,61617.0,61611.0,0.24296023]
[1727844990030,0.28997149,61617.0,61611.0,0.24296023]
[1727844990246,0.28997149,61617.0,61605.0,0.00082]
[1727844990460,0.29997149,61617.0,61605.0,0.00082]
[1727844990679,0.28597149,61617.0,61605.0,0.00082]
[1727844991101,0.29997149,61617.0,61605.0,0.00082]
[1727844991317,0.28997149,61617.0,61605.0,0.00082]
[1727844992648,0.28697149,61617.0,61605.0,0.00082]
[1727844992871,0.30097149,61617.0,61605.0,0.00082]
[1727844993107,0.27597149,61617.0,61605.0,0.00082]
[1727844993324,0.28797149,61617.0,61605.0,0.00082]
[1727844993539,0.83262617,61617.0,61605.0,0.00082]
[1727844993760,0.57760439,61617.0,61605.0,0.00082]
[1727844993975,0.56560439,61617.0,61605.0,0.00082]
[1727844994185,0.59160439,61617.0,61616.0,0.500819]
[1727844994429,0.57760439,61617.0,61616.0,0.500819]
[1727844994653,0.89185739,61617.0,61616.0,0.500819]
[1727844995303,0.58224966,61617.0,61616.0,0.500819]
[1727844995523,0.59569487,61617.0,61616.0,0.500819]
[1727844995953,0.62369487,61617.0,61616.0,0.500819]
[1727844996424,0.47291211,61617.0,61616.0,0.500819]
[1727844996642,0.59824966,61617.0,61616.0,0.500819]
[1727844998151,0.75394273,61617.0,61616.0,0.500819]
[1727844998610,0.59824966,61617.0,61616.0,0.500819]
[1727844998828,0.57331121,61617.0,61616.0,0.500819]
[1727844999514,0.40861676,61617.0,61616.0,0.500819]
[1727844999989,0.30861676,61617.0,61616.0,0.500819]
[1727845003064,0.49631121,61617.0,61616.0,0.500819]
[1727845003277,0.49824966,61617.0,61616.0,0.500819]
[1727845003963,0.72476273,61617.0,61616.0,0.500819]
[1727845005321,0.82476273,61617.0,61616.0,0.500819]
[1727845005531,0.85020764,61617.0,61616.0,0.500819]
[1727845007669,0.71419457,61617.0,61616.0,0.500819]
[1727845009702,0.88539457,61617.0,61616.0,0.500819]
[1727845009932,0.71419457,61617.0,61616.0,0.500819]
[1727845011660,0.68874966,61617.0,61616.0,0.500819]
[1727845013215,0.13179545,61606.0,61605.0,0.00082]
[1727845013442,0.28063976,61606.0,61605.0,0.00082]
[1727845015003,0.28557821,61606.0,61605.0,0.00082]
[1727845015362,0.28363976,61606.0,61605.0,0.00082]
[1727845016232,0.28963976,61606.0,61605.0,0.00082]
[1727845016450,0.54483421,61606.0,61605.0,0.00082]
[1727845016654,0.58164058,61606.0,61605.0,0.00082]
[1727845017502,0.57757903,61606.0,61605.0,0.00082]
[1727845017715,0.58557903,61606.0,61605.0,0.00082]
[1727845017926,0.59457903,61606.0,61605.0,0.00082]
[1727845018131,0.58357903,61606.0,61605.0,0.00082]
[1727845018346,0.57457903,61606.0,61605.0,0.00082]
[1727845018599,0.60002729,61606.0,61605.0,0.00082]
[1727845018812,0.61002729,61606.0,61605.0,0.00082]
[1727845019282,0.51952729,61606.0,61605.0,0.00082]
[1727845019491,0.16530526,61606.0,61605.0,0.00082]
[1727845019715,0.17930526,61606.0,61605.0,0.00082]
[1727845021249,0.33008802,61606.0,61605.0,0.00082]
[1727845021925,0.61972092,61606.0,61605.0,0.00082]
[1727845022137,0.78389974,61606.0,61605.0,0.00082]
[1727845022364,0.75845148,61606.0,61605.0,0.00082]
[1727845023456,0.79259807,61606.0,61605.0,0.00082]
[1727845023918,0.6304808,61606.0,61605.0,0.00082]
[1727845024143,0.40563976,61606.0,61605.0,0.00082]
[1727845024368,0.154857,61606.0,61605.0,0.00082]
[1727845025523,0.22859312,61606.0,61605.0,0.00082]
[1727845025747,0.18030382,61606.0,61605.0,0.00082]
[1727845026416,0.22859312,61606.0,61605.0,0.00082]
[1727845027514,0.18030382,61606.0,61605.0,0.00082]
[1727845028194,0.05044682,61606.0,61605.0,0.00082]
[1727845028417,0.154857,61606.0,61605.0,0.00082]
[1727845028879,0.143857,61606.0,61605.0,0.00082]
[1727845030045,0.16630202,61606.0,61605.0,0.00082]
[1727845030278,0.18030202,61606.0,61605.0,0.00082]
[1727845030457,0.15530202,61606.0,61605.0,0.00082]
[1727845030879,0.16230202,61606.0,61605.0,0.00082]
[1727845032150,0.136857,61606.0,61605.0,0.00082]
[1727845032376,0.007,61606.0,61605.0,0.00082]
[1727845032591,0.007,61606.0,61605.0,0.305179]
[1727845032808,0.007,61606.0,61605.0,0.46987345]
[1727845033699,0.24296023,61616.0,61606.0,0.1764]
[1727845033931,0.24296023,61616.0,61607.0,0.18153793]
[1727845034157,0.24296023,61616.0,61612.0,0.259689]
[1727845034371,0.24296023,61616.0,61613.0,0.16469445]
[1727845034581,0.24296023,61616.0,61610.0,0.259698]
[1727845034799,0.25967,61617.0,61610.0,0.259698]
[1727845034800,0.129838,61615.0,61611.0,0.29454045]
[1727845035029,0.129836,61616.0,61612.0,0.129844]
[1727845036161,0.130836,61616.0,61613.0,0.129842]
[1727845036385,0.130836,61616.0,61611.0,0.29453845]
[1727845036617,0.129836,61616.0,61612.0,0.129844]
[1727845036838,0.130836,61616.0,61612.0,0.129844]
[1727845037473,0.133836,61616.0,61612.0,0.129844]
[1727845037689,0.003,61616.0,61613.0,0.129841]
[1727845037898,0.003,61616.0,61611.0,0.259691]
[1727845037899,0.003,61616.0,61612.0,0.259687]
[1727845038106,0.006,61616.0,61613.0,0.129841]
[1727845038531,0.006,61616.0,61614.0,0.129838]
[1727845038750,0.006,61616.0,61615.0,0.0816]
[1727845039419,0.02543927,61617.0,61615.0,0.0816]
[1727845039645,0.003,61616.0,61615.0,0.0816]
[1727845040079,0.02543927,61617.0,61615.0,0.0816]
[1727845040313,0.003,61616.0,61615.0,0.0816]
[1727845040552,0.003,61616.0,61615.0,0.211438]
[1727845040827,0.003,61616.0,61615.0,0.47093245]
[1727845041520,0.00464,61616.0,61615.0,0.47093245]
[1727845042359,0.00164,61616.0,61615.0,0.47093245]
[1727845042800,0.00164,61616.0,61615.0,0.47193245]
[1727845044616,0.00164,61616.0,61615.0,0.57193245]
[1727845045490,0.00164,61616.0,61615.0,0.57093245]
[1727845045939,0.00264,61616.0,61615.0,0.57293245]
[1727845046150,0.00164,61616.0,61615.0,0.57093245]
[1727845046579,0.00364,61616.0,61615.0,0.57593245]
[1727845046801,0.00264,61616.0,61615.0,0.57393245]
[1727845047023,0.00264,61616.0,61615.0,0.57293245]
[1727845047478,0.00264,61616.0,61615.0,0.57393245]
[1727845047688,0.00264,61616.0,61615.0,0.47393245]
[1727845047898,0.00164,61616.0,61613.0,0.129842]
[1727845048114,0.00164,61616.0,61610.0,0.0816]
[1727845048380,0.00264,61616.0,61615.0,0.007]
[1727845048814,0.00364,61616.0,61615.0,0.01]
[1727845049031,0.00364,61616.0,61615.0,0.007]
[1727845049032,0.132476,61616.0,61615.0,0.007]
[1727845049500,0.00464,61616.0,61604.0,0.1]
[1727845049724,0.129847,61611.0,61608.0,0.24296023]
[1727845049943,0.129847,61611.0,61607.0,0.129854]
[1727845050376,0.129845,61612.0,61608.0,0.129852]
[1727845051777,0.24296023,61615.0,61607.0,0.003]
[1727845052033,0.129852,61609.0,61607.0,0.003]
[1727845052512,0.12985,61610.0,61607.0,0.003]
[1727845052731,0.12985,61610.0,61606.0,0.129856]
[1727845052943,0.259695,61611.0,61605.0,0.00082]
[1727845052944,0.15078276,61614.0,61608.0,0.002]
[1727845053163,0.50263723,61615.0,61608.0,0.002]
[1727845053164,0.129851,61609.0,61608.0,0.002]
[1727845053659,0.129853,61608.0,61605.0,0.00082]
[1727845053875,0.259701,61610.0,61605.0,0.00082]
[1727845054115,0.129852,61609.0,61605.0,0.130678]
[1727845054339,0.259695,61611.0,61605.0,0.130678]
[1727845054340,0.259701,61610.0,61605.0,0.130678]
[1727845054549,0.130852,61609.0,61608.0,0.003]
[1727845055622,0.15629437,61609.0,61608.0,0.003]
[1727845055839,0.129857,61606.0,61605.0,0.00082]
[1727845056075,0.129857,61606.0,61605.0,0.00382]
[1727845056523,0.129857,61606.0,61605.0,0.00082]
[1727845057895,0.130857,61606.0,61605.0,0.00382]
[1727845058373,0.131857,61606.0,61605.0,0.00682]
[1727845058619,0.130857,61606.0,61605.0,0.00382]
[1727845059042,0.129857,61606.0,61605.0,0.00082]
[1727845059273,0.129857,61606.0,61605.0,0.00382]
[1727845061041,0.129857,61606.0,61605.0,0.08522]
[1727845061484,0.259707,61608.0,61605.0,0.08522]
[1727845061485,0.129853,61608.0,61605.0,0.08522]
[1727845061699,0.02544237,61609.0,61605.0,0.08522]
[1727845061912,0.129856,61607.0,61605.0,0.08522]
[1727845062334,0.129855,61607.0,61605.0,0.08522]
[1727845062750,0.129855,61607.0,61605.0,0.08222]
[1727845062959,0.129857,61606.0,61605.0,0.08222]
[1727845063171,0.129857,61606.0,61605.0,0.08322]
[1727845063601,0.129855,61607.0,61605.0,0.08222]
[1727845063851,0.129855,61607.0,61605.0,0.08422]
[1727845064273,0.259707,61608.0,61605.0,0.08222]
[1727845064494,0.129857,61606.0,61605.0,0.00082]
[1727845064727,0.129857,61606.0,61605.0,0.00382]
[1727845065876,0.129857,61606.0,61605.0,0.00082]
[1727845066308,0.129857,61606.0,61605.0,0.00182]
[1727845066752,0.129857,61606.0,61605.0,0.00082]
[1727845066969,0.129857,61606.0,61605.0,0.00382]
[1727845068053,0.37281723,61606.0,61605.0,0.00382]
[1727845068272,0.17818256,61606.0,61605.0,0.00382]
[1727845068513,0.129857,61606.0,61605.0,0.00382]
[1727845068735,0.20234534,61606.0,61605.0,0.00382]
[1727845068967,0.129857,61606.0,61605.0,0.00082]
[1727845069177,0.2023505,61606.0,61605.0,0.00082]
[1727845069390,0.143857,61606.0,61605.0,0.00082]
[1727845069603,0.21635007,61606.0,61605.0,0.00082]
[1727845069824,0.33884057,61606.0,61605.0,0.00082]
[1727845070034,0.33384057,61606.0,61605.0,0.00082]
[1727845070273,0.2733475,61606.0,61605.0,0.00082]
[1727845070708,0.2613475,61606.0,61605.0,0.00082]
[1727845071139,0.2523475,61606.0,61605.0,0.00082]
[1727845071373,0.32483569,61606.0,61605.0,0.00082]
[1727845071866,0.44704133,61606.0,61605.0,0.00082]
[1727845072080,0.54279857,61606.0,61605.0,0.00082]
[1727845072510,0.55679857,61606.0,61605.0,0.00082]
[1727845073478,0.2793475,61606.0,61605.0,0.00082]
[1727845074165,0.35183643,61606.0,61605.0,0.00082]
[1727845074384,0.35182837,61606.0,61605.0,0.00082]
[1727845074599,0.22933787,61606.0,61605.0,0.00082]
[1727845074820,0.156857,61606.0,61605.0,0.00082]
[1727845075086,0.18230283,61606.0,61605.0,0.00082]
[1727845075717,0.15530283,61606.0,61605.0,0.00082]
[1727845076139,0.139857,61606.0,61605.0,0.00082]
[1727845076594,0.142857,61606.0,61605.0,0.00082]
[1727845076871,0.136857,61606.0,61605.0,0.00082]
[1727845078765,0.147857,61606.0,61605.0,0.00082]
[1727845079924,0.17330254,61606.0,61605.0,0.00082]
[1727845082211,0.147857,61606.0,61605.0,0.00082]
[1727845085253,0.17330192,61606.0,61605.0,0.00082]
[1727845086468,0.147857,61606.0,61605.0,0.00082]
[1727845090645,0.17330245,61606.0,61605.0,0.00082]
[1727845092367,0.147857,61606.0,61605.0,0.00082]
[1727845092604,0.129869,61601.0,61597.0,0.125695]
[1727845092847,0.129869,61601.0,61597.0,0.29038945]
[1727845093760,0.129869,61601.0,61598.0,0.129874]
[1727845094234,0.131869,61601.0,61598.0,0.129874]
[1727845094720,0.129869,61601.0,61598.0,0.129874]
[1727845094981,0.131869,61601.0,61598.0,0.129874]
[1727845095209,0.136869,61601.0,61598.0,0.129874]
[1727845095444,0.131869,61601.0,61598.0,0.129874]
[1727845095708,0.136869,61601.0,61598.0,0.129874]
[1727845095930,0.136869,61601.0,61597.0,0.16469445]
[1727845095931,0.129871,61600.0,61597.0,0.16469445]
[1727845096220,0.007,61601.0,61597.0,0.16469445]
[1727845096465,0.007,61601.0,61597.0,0.29456945]
[1727845096702,0.136868,61601.0,61597.0,0.29456945]
[1727845096936,0.134868,61601.0,61597.0,0.29456945]
[1727845097159,0.129868,61601.0,61597.0,0.29456945]
[1727845097861,0.001,61600.0,61597.0,0.29456945]
[1727845098321,0.004,61600.0,61597.0,0.16469445]
[1727845098560,0.129878,61596.0,61595.0,0.00082]
[1727845100622,0.20252638,61596.0,61595.0,0.00082]
[1727845101305,0.20252638,61596.0,61595.0,0.00182]
[1727845101776,0.20252638,61596.0,61595.0,0.00082]
[1727845102248,0.20351446,61596.0,61595.0,0.00182]
[1727845102467,0.31146545,61596.0,61595.0,0.00182]
[1727845102821,0.40831788,61596.0,61595.0,0.00182]
[1727845103160,0.40731788,61596.0,61595.0,0.00182]
[1727845103381,0.41231788,61596.0,61595.0,0.00182]
[1727845103602,0.134878,61596.0,61595.0,0.00182]
[1727845103816,0.134878,61596.0,61595.0,0.00082]
[1727845104263,0.136878,61596.0,61595.0,0.00082]
[1727845104696,0.134878,61596.0,61595.0,0.00082]
[1727845105127,0.129878,61596.0,61595.0,0.00082]
[1727845105566,0.17828992,61596.0,61595.0,0.00082]
[1727845105801,0.132878,61596.0,61595.0,0.00082]
[1727845106029,0.003,61596.0,61595.0,0.00082]
[1727845106248,0.003,61596.0,61595.0,0.2253]
[1727845106692,0.003,61596.0,61595.0,0.09542]
[1727845106920,0.003,61596.0,61595.0,0.2253]
[1727845107170,0.003,61596.0,61595.0,0.38999445]
[1727845108115,0.003,61596.0,61595.0,0.47169445]
[1727845108354,0.00164,61601.0,61595.0,0.34181445]
[1727845108584,0.00164,61601.0,61600.0,0.12987]
[1727845113400,0.00164,61601.0,61596.0,0.16469445]
[1727845113634,0.00164,61601.0,61599.0,0.24296023]
[1727845113855,0.00164,61601.0,61598.0,0.15078276]
[1727845113856,0.00164,61601.0,61600.0,0.29456445]
[1727845114530,0.00164,61601.0,61600.0,0.16469445]
[1727845114759,0.00164,61601.0,61600.0,0.29456445]
[1727845117078,0.00164,61601.0,61600.0,0.16469445]
[1727845117548,0.261379,61601.0,61597.0,0.00082]
[1727845117782,0.129874,61598.0,61597.0,0.00082]
[1727845118997,0.130874,61598.0,61597.0,0.00082]
[1727845119866,0.18030838,61598.0,61597.0,0.00082]
[1727845120306,0.17830838,61598.0,61597.0,0.00082]
[1727845120527,0.35919069,61598.0,61597.0,0.00082]
[1727845120745,0.36019069,61598.0,61597.0,0.00082]
[1727845120958,0.4328289,61598.0,61597.0,0.00082]
[1727845121172,0.06998,61597.0,61595.0,0.00082]
[1727845121406,0.17830199,61596.0,61595.0,0.00082]
[1727845124069,0.20251621,61596.0,61595.0,0.00082]
[1727845124282,0.129878,61596.0,61595.0,0.00082]
[1727845124930,0.48425781,61596.0,61595.0,0.00082]
[1727845125154,0.64737471,61596.0,61595.0,0.00082]
[1727845125383,0.64737471,61596.0,61585.0,0.23068339]
[1727845125384,0.129899,61586.0,61585.0,0.23068339]
[1727845125600,0.129899,61586.0,61581.0,0.00102]
[1727845125601,0.129908,61582.0,61581.0,0.00102]
[1727845125816,0.205308,61582.0,61581.0,0.00102]
[1727845126036,0.25369178,61582.0,61581.0,0.00102]
[1727845126720,0.129908,61582.0,61581.0,0.00102]
[1727845127146,0.134908,61582.0,61581.0,0.00102]
[1727845128035,0.005,61582.0,61581.0,0.13093]
[1727845128250,0.005,61582.0,61581.0,0.00102]
[1727845128724,0.005,61582.0,61581.0,0.29562445]
[1727845129793,0.004,61582.0,61581.0,0.29562445]
[1727845130037,0.001,61582.0,61581.0,0.29562445]
[1727845130452,0.24296023,61589.0,61587.0,0.129897]
[1727845130870,0.15533984,61591.0,61587.0,0.129897]
[1727845131926,0.15533984,61591.0,61586.0,0.129897]
[1727845131927,0.129892,61590.0,61586.0,0.129897]
[1727845132137,0.129889,61591.0,61587.0,0.129896]
[1727845132358,0.129892,61590.0,61586.0,0.29459345]
[1727845132572,0.001,61589.0,61586.0,0.29459345]
[1727845132787,0.001,61589.0,61587.0,0.129895]
[1727845133203,0.004,61589.0,61587.0,0.129895]
[1727845133407,0.129891,61590.0,61587.0,0.129895]
[1727845133617,0.003,61591.0,61587.0,0.129895]
[1727845133818,0.004,61589.0,61587.0,0.129895]
[1727845134473,0.009,61589.0,61587.0,0.129895]
[1727845135144,0.009,61589.0,61586.0,0.29459345]
[1727845135351,0.138893,61589.0,61586.0,0.29459345]
[1727845135763,0.009,61589.0,61586.0,0.29459345]
[1727845135978,0.009,61589.0,61588.0,0.129895]
[1727845136400,0.129888,61592.0,61588.0,0.129895]
[1727845136620,0.005,61589.0,61586.0,0.16469445]
[1727845136830,0.005,61589.0,61588.0,0.129894]
[1727845137045,0.001,61589.0,61588.0,0.129894]
[1727845137264,0.001,61589.0,61586.0,0.29459245]
[1727845137479,0.001,61589.0,61587.0,0.129897]
[1727845137734,0.02544992,61591.0,61588.0,0.16469445]
[1727845137956,0.15533992,61591.0,61588.0,0.16469445]
[1727845138165,0.02544992,61591.0,61588.0,0.29458945]
[1727845138564,0.15533892,61591.0,61588.0,0.29458945]
[1727845138775,0.02544992,61591.0,61590.0,0.129891]
[1727845139246,0.02708992,61591.0,61590.0,0.129891]
[1727845139464,0.15697892,61591.0,61588.0,0.29458945]
[1727845139897,0.02708992,61591.0,61588.0,0.16469445]
[1727845140112,0.02708992,61591.0,61589.0,0.389678]
[1727845140324,0.02908992,61591.0,61589.0,0.55437245]
[1727845140491,0.02908992,61591.0,61589.0,0.29458645]
[1727845141120,0.02708992,61591.0,61590.0,0.37598545]
[1727845141290,0.00364,61591.0,61590.0,0.37598545]
[1727845142553,0.00164,61591.0,61590.0,0.37598545]
[1727845142906,0.00364,61591.0,61590.0,0.37598545]
[1727845143107,0.00164,61591.0,61590.0,0.24609445]
[1727845143310,0.00164,61591.0,61590.0,0.29458545]
[1727845143518,0.00364,61591.0,61590.0,0.29458545]
[1727845144569,0.00364,61591.0,61586.0,0.259796]
[1727845144570,0.129904,61584.0,61583.0,0.01969554]
[1727845144781,0.26342,61591.0,61583.0,0.16469445]
[1727845144997,0.00364,61591.0,61583.0,0.16469445]
[1727845145203,0.259795,61588.0,61583.0,0.16469445]
[1727845145472,0.129901,61586.0,61583.0,0.16469445]
[1727845145924,0.00164,61591.0,61583.0,0.16469445]
[1727845146134,0.00764,61591.0,61587.0,0.15078276]
[1727845146359,0.00164,61591.0,61590.0,0.211291]
[1727845147189,0.00464,61591.0,61590.0,0.211291]
[1727845147403,0.01064,61591.0,61590.0,0.211291]
[1727845147605,0.00764,61591.0,61590.0,0.211291]
[1727845147819,0.00164,61591.0,61590.0,0.211291]
[1727845148284,0.00164,61591.0,61590.0,0.37598545]
[1727845149182,0.00464,61591.0,61590.0,0.37598545]
[1727845149370,0.00164,61591.0,61590.0,0.37598545]
[1727845160953,0.00164,61591.0,61590.0,0.52676821]
[1727845162119,0.00164,61591.0,61590.0,0.62676821]
[1727845162343,0.00164,61591.0,61590.0,0.72376821]
[1727845162570,0.00164,61591.0,61590.0,0.72458821]
[1727845163712,0.00364,61591.0,61590.0,0.72458821]
[1727845165184,0.00264,61591.0,61590.0,0.72458821]
[1727845165420,0.00364,61591.0,61590.0,0.73058821]
[1727845167712,0.00364,61591.0,61590.0,0.67881505]
[1727845174126,0.00164,61601.0,61600.0,0.22987]
[1727845174343,0.00164,61601.0,61600.0,0.67242045]
[1727845174563,0.00164,61601.0,61600.0,0.66917405]
[1727845175459,0.00264,61601.0,61600.0,0.67217405]
[1727845176650,0.00364,61601.0,61600.0,0.68217405]
[1727845179087,0.00364,61601.0,61600.0,0.6864374]
[1727845179526,0.00364,61601.0,61600.0,0.73826721]
[1727845184282,0.00364,61601.0,61600.0,0.63946721]
[1727845187725,0.00364,61601.0,61600.0,0.4886278]
[1727845187970,0.00364,61601.0,61600.0,0.63946721]
[1727845199498,0.00364,61601.0,61600.0,0.58761508]
[1727845200612,0.00364,61601.0,61600.0,0.4118278]
[1727845200834,0.00364,61601.0,61600.0,0.30756445]
[1727845201064,0.00364,61601.0,61600.0,0.17769445]
[1727845201296,0.308208,61601.0,61600.0,0.013]
[1727845202189,0.17834,61601.0,61600.0,0.013]
[1727845202414,0.17834,61601.0,61600.0,0.24185728]
[1727845202632,0.00264,61601.0,61600.0,0.39655173]
[1727845202860,0.00164,61601.0,61600.0,0.39355173]
[1727845203091,0.00264,61601.0,61600.0,0.50655173]
[1727845203329,0.00264,61601.0,61600.0,0.58775173]
[1727845203548,0.00164,61601.0,61600.0,0.58184991]
[1727845203774,0.00164,61601.0,61600.0,0.57884991]
[1727845204215,0.00164,61601.0,61600.0,0.58684991]
[1727845204677,0.00164,61601.0,61600.0,0.58384991]
[1727845204883,0.00164,61601.0,61600.0,0.16969445]
[1727845205107,0.00164,61601.0,61599.0,0.12987]
[1727845205108,0.37459039,61600.0,61599.0,0.12987]
[1727845206071,0.37459039,61600.0,61599.0,0.129872]
[1727845206947,0.37559039,61600.0,61599.0,0.135872]
[1727845207630,0.37659039,61600.0,61599.0,0.143872]
[1727845208499,0.59866039,61600.0,61599.0,0.014]
[1727845208723,0.68116039,61600.0,61599.0,0.014]
[1727845215665,0.7537434,61600.0,61599.0,0.014]
[1727845215900,0.96390355,61600.0,61599.0,0.014]